bitfinex-derivatives/quotes_ETHF0:USTF0_20250410
["timestamp","ask_amount","ask_price","bid_price","bid_amount"]
[1744255054344,10.49931118,1618.9,1618.8,1.60269204]
[1744255054543,1.23602,1618.7,1618.6,0.00925726]
[1744255054739,1.23602,1618.7,1618.6,1.6119493]
[1744255055335,9.44382,1618.7,1618.6,0.00925726]
[1744255055747,13.22172,1618.7,1618.6,0.00925726]
[1744255056643,8.22172,1618.7,1618.6,0.00925726]
[1744255056843,5.01392,1618.7,1618.6,1.6119493]
[1744255058747,5.01392,1618.7,1618.6,2.8480493]
[1744255058952,5.01392,1618.7,1618.6,1.6119493]
[1744255059151,3.21705726,1618.9,1618.6,1.6119493]
[1744255059343,1.23595,1618.8,1618.7,1.60269204]
[1744255059847,1.23595,1618.8,1618.7,5.62269204]
[1744255060859,1.23595,1618.8,1618.7,5.61116062]
[1744255061147,1.23595,1618.8,1618.6,0.00925726]
[1744255061148,1.23602,1618.7,1618.6,0.00925726]
[1744255061353,1.23648,1618.1,1618.0,3.9994]
[1744255061550,1.23677,1617.8,1617.6,4.0759]
[1744255061750,1.23679,1617.7,1617.6,4.0759]
[1744255062054,1.23677,1617.8,1617.7,1.23675]
[1744255062251,1.23671,1617.9,1617.8,1.2367]
[1744255062454,0.00925726,1617.9,1617.6,9.99515726]
[1744255062654,1.24593726,1617.9,1617.8,1.23671]
[1744255063042,1.23674,1617.8,1617.7,1.23673]
[1744255063449,1.23679,1617.7,1617.6,11.23195726]
[1744255063755,1.23671,1617.8,1617.7,1.23678]
[1744255064056,1.23671,1617.8,1617.7,5.09378]
[1744255064348,1.23671,1617.8,1617.7,3.857]
[1744255064555,1.23671,1617.8,1617.7,5.09379]
[1744255064752,1.23671,1617.8,1617.7,7.0648]
[1744255064942,1.23679,1617.7,1617.6,9.99515726]
[1744255065146,4.97029,1617.7,1617.6,5.91925726]
[1744255065346,4.97029,1617.7,1617.6,0.00925726]
[1744255065347,9.97029,1617.7,1617.6,0.00925726]
[1744255065547,15.80429,1617.7,1617.6,0.00925726]
[1744255066060,15.80429,1617.7,1617.6,7.26e-06]
[1744255070459,16.29278618,1617.7,1617.6,7.26e-06]
[1744255070964,15.80429,1617.7,1617.6,7.26e-06]
[1744255073764,1.23725,1617.1,1617.0,3.9306]
[1744255074251,1.23725,1617.1,1617.0,8.9306]
[1744255075862,3.09334,1617.0,1616.6,3.7203]
[1744255076160,1.23755,1616.7,1616.6,3.7133]
[1744255076563,1.23755,1616.7,1616.6,8.7133]
[1744255077067,1.23755,1616.7,1616.6,9.95093]
[1744255078064,1.23755,1616.7,1616.6,8.7133]
[1744255078655,1.23755,1616.7,1616.6,4.95093]
[1744255079264,1.23755,1616.7,1616.6,8.15873]
[1744255079463,1.23755,1616.7,1616.6,13.15873]
[1744255080461,1.23755,1616.7,1616.6,8.7133]
[1744255080663,1.23755,1616.7,1616.6,3.7133]
[1744255081159,1.23778,1616.4,1616.3,5.913]
[1744255081461,1.23778,1616.4,1616.3,3.7073]
[1744255082255,1.23778,1616.4,1616.3,4.94516]
[1744255082451,1.23775,1616.5,1616.4,1.23778]
[1744255082652,1.23775,1616.5,1616.4,4.94508]
[1744255083067,1.23775,1616.5,1616.4,3.7073]
[1744255083767,1.23775,1616.5,1616.4,4.94508]
[1744255083961,1.23775,1616.5,1616.4,4.44558]
[1744255084162,3.09457,1616.4,1616.0,3.2078]
[1744255084362,1.23786,1616.3,1616.2,4.44574]
[1744255084561,1.23794,1616.2,1616.1,5.21414]
[1744255085267,1.23794,1616.2,1616.1,3.9762]
[1744255085463,1.23794,1616.2,1616.1,5.21421]
[1744255086369,1.23794,1616.2,1616.1,3.9762]
[1744255086565,1.23824,1615.8,1615.7,0.10996607]
[1744255087068,1.23824,1615.8,1615.7,1.34828607]
[1744255087766,15.28004,1615.8,1615.7,6.07e-06]
[1744255088067,15.28004,1615.8,1615.2,3.2078]
[1744255088068,1.23863,1615.3,1615.2,3.2078]
[1744255088263,1.23863,1615.3,1614.8,3.71662]
[1744255088264,14.6978,1615.3,1614.6,3.2078]
[1744255088464,7.07273,1615.2,1615.0,4.44664]
[1744255088667,6.30486,1615.1,1614.6,54.59409]
[1744255088859,9.0418,1615.1,1614.6,6.899]
[1744255089059,1.23905,1614.8,1614.7,3.9177]
[1744255089259,7.09289649,1615.0,1614.7,3.9177]
[1744255089461,1.23916,1614.6,1614.5,19.17858777]
[1744255089862,1.23905,1614.8,1614.5,24.17858777]
[1744255090064,1.23905,1614.8,1614.6,8.47682]
[1744255090369,9.5375,1614.9,1614.7,5.26898]
[1744255090570,10.77647,1614.9,1614.7,5.26898]
[1744255090779,1.24817649,1615.0,1614.7,4.0299]
[1744255090963,0.00928649,1615.0,1614.9,1.23893]
[1744255091165,0.00928649,1615.0,1614.9,5.26883]
[1744255091472,1.24814649,1615.0,1614.9,4.0299]
[1744255091674,1.23903,1614.8,1614.6,4.44692]
[1744255091865,4.9425,1614.9,1614.7,4.0299]
[1744255092074,0.00928649,1615.0,1614.8,1.23901]
[1744255092265,1.24814649,1615.0,1614.9,3.9389]
[1744255095166,3.10643649,1615.0,1614.6,3.2078]
[1744255095468,1.23907,1614.8,1614.7,3.9953]
[1744255095669,1.23901,1614.8,1614.7,3.9953]
[1744255096373,5.834,1614.9,1614.8,1.23901]
[1744255096770,1.23901,1614.8,1614.7,5.23434]
[1744255096971,1.23901,1614.8,1614.7,3.9953]
[1744255097269,7.07297,1614.9,1614.8,1.23901]
[1744255097474,5.834,1614.9,1614.8,4.44681]
[1744255097667,7.07293,1614.9,1614.8,4.44681]
[1744255097976,7.07293,1614.9,1614.8,1.23901]
[1744255098167,1.23901,1614.8,1614.7,3.9953]
[1744255098576,5.06661,1614.8,1614.7,3.9953]
[1744255098872,1.23924,1614.5,1614.2,8.8678]
[1744255099066,8.93227,1614.5,1614.0,11.1161]
[1744255099367,3.09907,1614.0,1613.6,3.2078]
[1744255099567,3.2078,1613.8,1613.4,7.1032]
[1744255099763,3.8276,1613.9,1613.6,4.44767]
[1744255099969,0.00928649,1613.8,1613.7,8.34305]
[1744255100371,0.00928649,1613.8,1613.7,13.34305]
[1744255100567,0.00928649,1613.8,1613.7,17.30915]
[1744255100771,5.834,1614.5,1614.0,3.09902]
[1744255100979,1.23934,1614.4,1614.1,7.1032]
[1744255101174,3.8276,1614.5,1614.3,3.2078]
[1744255101370,9.6616,1614.5,1614.2,5.13484]
[1744255101570,9.6616,1614.5,1614.2,3.8954]
[1744255101775,1.23939,1614.3,1614.2,3.8954]
[1744255101978,1.23939,1614.3,1614.2,3.90468649]
[1744255102177,1.23938,1614.4,1614.2,3.90468649]
[1744255102481,1.24856649,1614.5,1614.3,42.03937]
[1744255102778,1.24856649,1614.5,1614.4,3.9639]
[1744255103279,1.23939,1614.3,1614.2,0.00928649]
[1744255104384,12.07339,1614.3,1614.2,6.49e-06]
[1744255104580,1.23993,1613.6,1613.5,3.2078]
[1744255104769,3.09964,1613.7,1613.3,8.8688]
[1744255104968,1.24008,1613.4,1613.3,3.2078]
[1744255105177,1.24007,1613.5,1613.3,3.2078]
[1744255105472,1.2398,1613.8,1613.7,1.23983]
[1744255105678,3.6975,1614.0,1613.7,4.44763]
[1744255105977,1.23978,1613.8,1613.7,3.2078]
[1744255106176,1.24904649,1613.9,1613.7,4.44765]
[1744255106383,3.70678649,1613.9,1613.5,3.2078]
[1744255106578,1.23978,1613.8,1613.7,3.3914]
[1744255106779,7.07378,1613.8,1613.7,1.86803]
[1744255106979,13.97908,1613.8,1613.7,1.86803]
[1744255107278,10.77128,1613.8,1613.7,1.86803]
[1744255108175,18.97908,1613.8,1613.7,0.59084624]
[1744255108481,10.77128,1613.8,1613.7,0.59084624]
[1744255108872,15.77128,1613.8,1613.7,0.59084624]
[1744255109069,10.77128,1613.8,1613.7,0.59084624]
[1744255109283,18.97908,1613.8,1613.7,6.24e-06]
[1744255109785,24.71308,1613.8,1613.7,6.24e-06]
[1744255111385,1.24052,1612.9,1612.8,1.24054]
[1744255111585,3.10058,1613.3,1612.7,3.2078]
[1744255111781,0.00928649,1613.0,1612.9,3.2078]
[1744255111984,0.00928649,1613.0,1612.9,4.44827]
[1744255112181,0.00928649,1613.0,1612.9,9.44827]
[1744255112983,0.00928649,1613.0,1612.9,10.06827]
[1744255113292,1.24967649,1613.0,1612.9,3.8278]
[1744255113487,1.24967649,1613.0,1612.9,3.2078]
[1744255113781,1.24055,1612.8,1612.7,3.2078]
[1744255114185,1.24055,1612.8,1612.5,1.24071]
[1744255114186,1.2407,1612.6,1612.5,3.2078]
[1744255114585,11.29413,1612.9,1612.5,3.2078]
[1744255114888,1.2407,1612.6,1612.5,4.44855]
[1744255115183,5.834,1612.9,1612.5,3.2078]
[1744255115384,1.2407,1612.6,1612.5,3.2078]
[1744255115581,3.10176,1612.6,1612.2,3.2078]
[1744255115783,2.3589,1612.5,1612.2,3.2078]
[1744255115985,5.834,1612.9,1612.6,1.24064]
[1744255116185,1.24078,1612.5,1612.4,3.2078]
[1744255116380,3.10156,1612.7,1612.3,3.7168]
[1744255116586,1.24085,1612.4,1612.3,3.7168]
[1744255116791,3.71485,1612.6,1612.4,1.24083]
[1744255116987,3.71485,1612.6,1612.3,2.4759]
[1744255116988,1.24085,1612.4,1612.3,2.4759]
[1744255117291,1.24085,1612.4,1612.1,40.8]
[1744255117292,1.24101,1612.2,1612.1,40.8]
[1744255117589,3.10158,1612.7,1612.1,40.8]
[1744255117785,3.10138,1612.8,1612.1,44.0078]
[1744255117984,1.24078,1612.5,1612.3,3.2078]
[1744255118180,2.4741,1612.4,1612.2,2.4037]
[1744255118476,1.24084,1612.5,1612.3,4.44873]
[1744255118676,3.10203,1612.5,1612.1,3.2078]
[1744255118881,5.57639,1612.4,1612.0,1.2411]
[1744255119079,5.57639,1612.4,1611.9,7.9914]
[1744255119080,1.24116,1612.0,1611.9,7.9914]
[1744255119286,5.57624,1612.4,1612.0,1.24112]
[1744255119485,2.4741,1612.2,1612.1,4.44888]
[1744255119678,3.71517,1612.2,1612.0,44.44482]
[1744255119884,2.4741,1612.2,1612.0,44.4448]
[1744255120083,3.11146649,1612.4,1612.2,1.24101]
[1744255120084,0.00928649,1612.4,1612.2,1.24101]
[1744255120291,1.24101,1612.2,1612.1,3.2078]
[1744255120482,0.00928649,1612.4,1612.1,3.2078]
[1744255120483,1.25018649,1612.4,1612.1,3.2078]
[1744255120684,1.25016649,1612.4,1612.3,1.24093]
[1744255120881,0.00928649,1612.4,1612.0,40.8]
[1744255121182,2.2627,1612.3,1612.2,1.24101]
[1744255121382,3.50363,1612.3,1612.1,3.2078]
[1744255121589,2.2627,1612.3,1612.1,5.4741]
[1744255121888,2.2627,1612.3,1612.0,40.8]
[1744255122088,1.24108,1612.1,1612.0,40.8]
[1744255122289,1.24116,1612.0,1611.9,3.2078]
[1744255122494,1.24124,1611.9,1611.8,0.10996607]
[1744255122795,3.67054,1611.9,1611.8,0.10996607]
[1744255122978,2.4293,1611.9,1611.8,0.10996607]
[1744255123180,19.2713,1611.9,1611.6,0.01283169]
[1744255123381,1.24139,1611.7,1611.6,0.01283169]
[1744255123784,1.24137,1611.8,1611.6,0.01283169]
[1744255123977,1.24139,1611.7,1611.6,0.01283169]
[1744255124182,1.24137,1611.8,1611.6,0.01283169]
[1744255124384,11.842,1611.9,1611.6,3.22063169]
[1744255124583,1.24139,1611.7,1611.6,0.01283169]
[1744255124784,1.24139,1611.7,1611.6,1.69e-06]
[1744255124980,3.1041,1611.4,1610.9,3.2078]
[1744255125291,9.11195,1611.5,1611.0,40.8]
[1744255125483,9.11195,1611.5,1610.6,3.2078]
[1744255125484,0.00928649,1611.3,1610.6,3.2078]
[1744255125684,3.10445,1611.2,1610.7,1.24212]
[1744255125886,0.00928649,1611.3,1610.8,44.0078]
[1744255126194,0.00928649,1611.3,1611.0,3.2078]
[1744255126487,1.24178,1611.2,1611.1,2.2748]
[1744255126678,0.00928649,1611.3,1611.1,2.2748]
[1744255126882,2.49868649,1611.3,1610.8,44.0078]
[1744255127084,1.24201,1610.9,1610.8,44.0078]
[1744255127287,3.10445,1611.2,1610.8,44.0078]
[1744255127597,1.24179,1611.2,1611.0,3.2078]
[1744255127790,2.4894,1611.1,1611.0,3.2078]
[1744255128190,3.73125,1611.1,1611.0,44.0078]
[1744255128391,0.00928649,1611.3,1611.0,50.24967]
[1744255128591,0.00928649,1611.3,1611.1,3.51661]
[1744255128889,0.00928649,1611.3,1611.2,5.5517]
[1744255129492,1.25098649,1611.3,1611.2,5.5517]
[1744255129887,0.00928649,1611.3,1611.2,5.5517]
[1744255130087,1.24189,1611.1,1610.7,3.2078]
[1744255130390,1.24185,1611.1,1611.0,5.5517]
[1744255130586,3.58443,1611.2,1611.0,5.5517]
[1744255130888,0.00928649,1611.3,1611.0,5.5517]
[1744255130889,0.00928649,1611.3,1611.0,11.5627]
[1744255131093,1.25098649,1611.3,1611.2,3.2078]
[1744255132188,1.24198,1611.0,1610.9,3.2078]
[1744255132588,1.24198,1611.0,1610.9,5.5136]
[1744255132784,1.24198,1611.0,1610.9,3.2078]
[1744255134293,1.24201,1610.9,1610.5,8.0173]
[1744255134495,3.2078,1610.6,1609.8,3.2078]
[1744255134694,1.24278,1609.9,1609.8,5.6293]
[1744255134895,1.24275,1610.0,1609.8,8.1202]
[1744255135088,2.2559,1610.1,1609.9,2.4909]
[1744255135290,0.00931561,1610.4,1610.0,40.8]
[1744255135494,1.24263,1610.1,1610.0,40.8]
[1744255135897,0.00931561,1610.4,1610.0,51.39764]
[1744255136097,0.00931561,1610.4,1610.1,5.6101]
[1744255136293,0.00931561,1610.4,1610.3,1.24247]
[1744255136493,0.00931561,1610.4,1610.3,3.2078]
[1744255136691,0.00931561,1610.4,1610.0,40.8]
[1744255136900,0.00931561,1610.4,1610.0,44.0078]
[1744255137102,5.37120561,1610.4,1610.0,44.0078]
[1744255137402,3.50763561,1610.4,1610.2,1.24251]
[1744255137593,1.24281,1609.9,1609.8,3.2078]
[1744255137794,1.24303,1609.6,1609.2,3.2078]
[1744255137990,1.24324,1609.4,1609.3,40.8]
[1744255138299,6.86863,1609.5,1609.3,40.8]
[1744255138602,0.00931561,1609.6,1609.5,1.24309]
[1744255139002,0.00931561,1609.6,1609.4,7.8204]
[1744255139491,0.00931561,1609.6,1609.5,42.04309]
[1744255140204,0.00931561,1609.6,1609.5,44.30819]
[1744255140404,0.00931561,1609.6,1609.5,49.30819]
[1744255140798,3.2078,1610.2,1609.7,3.10723]
[1744255140997,2.3882,1610.2,1610.1,1.24263]
[1744255141598,6.83857,1610.2,1609.8,15.04462]
[1744255141802,6.83857,1610.2,1610.0,1.24268]
[1744255142000,1.24278,1609.9,1609.8,0.00931561]
[1744255142300,11.43931561,1610.2,1609.8,0.00931561]
[1744255142498,12.68188561,1610.2,1609.8,3.11646561]
[1744255142703,0.00931561,1610.2,1610.1,1.24263]
[1744255143312,0.00931561,1610.2,1610.1,9.45043]
[1744255143505,3.2078,1610.8,1610.3,3.10606]
[1744255143703,2.3882,1610.8,1610.4,2.4387]
[1744255144003,3.1058,1610.5,1610.1,2.2495]
[1744255144201,1.24278,1609.9,1609.8,5.61e-06]
[1744255144410,1.24278,1609.9,1609.1,3.2078]
[1744255144411,3.10746,1609.7,1609.1,6.71565]
[1744255144606,3.2078,1609.6,1609.1,5.4723]
[1744255144904,3.2078,1609.4,1609.2,43.0645]
[1744255145100,3.63942,1609.5,1609.3,1.24321]
[1744255145412,2.3963,1609.5,1609.4,2.2645]
[1744255145601,2.3963,1609.5,1609.2,40.80931561]
[1744255145602,1.24324,1609.3,1609.2,40.80931561]
[1744255146115,3.2078,1609.4,1609.3,1.24323]
[1744255146303,1.24348,1609.0,1608.9,1.49784766]
[1744255146506,9.4988,1609.0,1608.6,0.6216]
[1744255146706,1.24371,1608.7,1608.6,0.6216]
[1744255147003,1.24385,1608.6,1608.3,1.24399]
[1744255147205,2.2725,1608.7,1608.5,1.24384]
[1744255147397,3.2078,1609.0,1608.3,15.2596]
[1744255147600,1.24359,1608.9,1608.4,3.2078]
[1744255147804,0.00931561,1608.8,1608.7,1.24369]
[1744255148002,0.00931561,1608.8,1608.4,3.2078]
[1744255148194,0.00931561,1608.8,1608.3,5.50181]
[1744255148396,0.00931561,1608.8,1608.7,1.24371]
[1744255148601,100.8963,1609.9,1608.4,9.65986]
[1744255148602,3.2078,1609.4,1609.3,1.24324]
[1744255148796,3.2078,1609.4,1608.7,6.96720441]
[1744255149008,3.2078,1609.4,1608.6,3.2078]
[1744255149009,3.2078,1609.6,1609.2,3.10827]
[1744255149299,3.2078,1609.6,1609.3,40.8]
[1744255149501,3.10699,1609.9,1609.4,2.3948]
[1744255149502,2.2725,1609.9,1609.4,2.3948]
[1744255149703,6.72308,1609.9,1609.4,2.3948]
[1744255149896,1.25220561,1609.8,1609.5,0.00931561]
[1744255150097,0.00931561,1609.8,1609.7,1.24293]
[1744255150296,3.2078,1610.3,1610.2,1.2425]
[1744255150501,2.3028,1610.4,1610.0,6.551]
[1744255150702,1.24253,1610.3,1610.1,2.3483]
[1744255150908,2.3028,1610.4,1610.1,2.3483]
[1744255151109,6.31291,1610.9,1610.1,2.3483]
[1744255151410,3.2078,1610.7,1610.6,1.24224]
[1744255151610,0.00931561,1610.7,1610.6,1.24224]
[1744255151805,3.2078,1611.3,1611.1,1.24185]
[1744255152107,3.2078,1611.3,1611.2,40.8]
[1744255152303,9.28213779,1610.8,1610.3,0.00931561]
[1744255152507,5.5106,1610.7,1610.2,3.2078]
[1744255152707,5.5106,1610.7,1610.3,8.8983]
[1744255152903,5.5106,1610.7,1610.4,2.342]
[1744255153108,9.28213779,1610.8,1610.7,1.24216]
[1744255153310,9.28213779,1610.8,1610.7,7.79216]
[1744255153509,9.28213779,1610.8,1610.7,12.79216]
[1744255153711,9.28213779,1610.8,1610.7,17.35036]
[1744255154013,0.29248462,1610.8,1610.7,17.35036]
[1744255154308,1.24216,1610.7,1610.6,0.00931561]
[1744255154514,8.59806,1610.7,1610.6,0.00931561]
[1744255154718,8.59806,1610.7,1610.6,5.61e-06]
[1744255155410,7.3559,1610.7,1610.1,2.342]
[1744255155603,5.5637,1610.7,1610.2,1.2425]
[1744255155804,1.24247,1610.4,1610.1,2.342]
[1744255156010,1.24228,1610.6,1610.3,1.24247]
[1744255156212,1.24228,1610.6,1610.1,9.155]
[1744255156404,6.80591,1610.7,1610.4,1.24235]
[1744255156609,6.80591,1610.7,1610.2,40.80931561]
[1744255156802,5.5637,1610.7,1610.3,3.69062]
[1744255157008,1.24224,1610.6,1610.4,2.4482]
[1744255157205,5.5637,1610.7,1610.4,2.4482]
[1744255157408,1.24239,1610.4,1610.3,2.4034]
[1744255157607,2.3559,1610.7,1610.3,3.64587]
[1744255157814,3.2078,1610.6,1610.4,1.24239]
[1744255158118,4.45012,1610.5,1610.4,2.4482]
[1744255158335,1.24229,1610.6,1610.4,2.4482]
[1744255158515,3.2078,1610.6,1610.2,40.80931561]
[1744255158714,1.24247,1610.3,1610.2,5.61e-06]
[1744255159219,8.64977,1610.3,1610.2,5.61e-06]
[1744255160120,14.48377,1610.3,1610.2,5.61e-06]
[1744255161213,8.64977,1610.3,1610.2,5.61e-06]
[1744255161618,1.24274,1610.0,1609.5,2.75666766]
[1744255161806,2.4073,1609.9,1609.8,1.24282]
[1744255162006,5.6151,1609.9,1609.8,1.24282]
[1744255162211,6.85788,1609.9,1609.8,1.24282]
[1744255162519,5.6151,1609.9,1609.8,1.24282]
[1744255162817,5.6151,1609.9,1609.4,6.813]
[1744255163009,3.2078,1609.7,1609.5,1.24309]
[1744255163211,3.51954,1609.6,1609.4,8.05609]
[1744255163407,3.51954,1609.6,1609.4,1.24311]
[1744255163716,2.2765,1609.6,1609.3,0.9178]
[1744255163912,3.51953,1609.6,1609.4,1.24317]
[1744255164111,3.51953,1609.6,1609.4,1.24312]
[1744255164416,2.2765,1609.6,1609.3,0.9178]
[1744255164614,2.2765,1609.6,1609.3,3.10812]
[1744255164919,3.2078,1609.7,1609.6,1.24301]
[1744255165114,1.24286,1609.8,1609.6,6.814]
[1744255165318,1.24286,1609.8,1609.7,40.8]
[1744255165515,4.45066,1609.8,1609.7,40.8]
[1744255167624,1.24293,1609.7,1609.6,6.814]
[1744255168025,1.24293,1609.7,1609.5,1.24303]
[1744255168212,1.24301,1609.6,1609.5,6.815]
[1744255168717,4.45081,1609.6,1609.5,40.8]
[1744255168915,1.24332,1609.3,1609.2,1.24332]
[1744255169323,1.24332,1609.3,1609.2,40.8]
[1744255170320,1.24369,1608.8,1608.7,6.815]
[1744255170624,1.24369,1608.8,1608.7,3.72113205]
[1744255170822,1.24369,1608.8,1608.7,45.76484205]
[1744255171224,0.00931561,1608.9,1608.7,45.76484205]
[1744255171526,1.25290561,1608.9,1608.8,1.24363]
[1744255171918,1.24363,1608.8,1608.7,45.76481205]
[1744255172117,4.45143,1608.8,1608.7,45.76481205]
[1744255172424,4.45143,1608.8,1608.7,44.52113205]
[1744255172620,4.45143,1608.8,1608.7,40.8]
[1744255173518,3.1093,1608.7,1608.3,1.24397]
[1744255173826,3.2078,1608.6,1608.2,7.69048957]
[1744255174127,3.2078,1608.6,1608.2,10.80063957]
[1744255174323,3.21711561,1608.9,1608.8,1.24363]
[1744255174829,3.21711561,1608.9,1608.7,1.24364]
[1744255175124,3.21711561,1608.9,1608.6,7.3815]
[1744255175125,4.46069561,1608.9,1608.6,7.3815]
[1744255175425,4.46067561,1608.9,1608.8,1.24363]
[1744255175727,3.21711561,1608.9,1608.7,42.04364]
[1744255175926,2.4157,1608.8,1608.7,42.04364]
[1744255176826,2.4157,1608.8,1608.7,1.24364]
[1744255177726,3.65933,1608.8,1608.7,42.04371]
[1744255177920,3.65933,1608.8,1608.7,40.8]
[1744255179720,1.24378,1608.6,1608.5,1.24382]
[1744255180124,1.24425,1608.0,1607.9,6.559]
[1744255180432,3.2078,1608.2,1607.9,7.80329]
[1744255180728,3.2078,1608.7,1608.2,3.11024]
[1744255180917,2.6009,1608.6,1608.5,1.24386]
[1744255181116,3.84468,1608.6,1608.5,1.24386]
[1744255181328,3.84468,1608.6,1608.5,40.8]
[1744255181523,3.84468,1608.6,1607.9,0.5644]
[1744255181524,7.6009,1608.6,1607.9,3.2078]
[1744255181723,6.31747,1608.5,1608.2,1.24403]
[1744255181923,2.6009,1608.4,1608.3,1.24402]
[1744255182124,2.6009,1608.4,1608.3,42.04402]
[1744255182330,1.2439,1608.5,1608.4,1.24391]
[1744255182632,3.84472,1608.6,1608.4,1.2439]
[1744255182834,2.6009,1608.6,1608.2,0.5644]
[1744255183034,2.6009,1608.6,1608.3,9.2007]
[1744255183334,2.6009,1608.6,1608.5,1.24386]
[1744255183533,2.6009,1608.6,1608.3,9.2007]
[1744255183831,3.84473,1608.6,1608.5,40.8]
[1744255184025,2.6009,1608.6,1608.5,42.04386]
[1744255184225,2.6009,1608.6,1608.5,40.8]
[1744255184435,2.6009,1608.6,1608.5,42.04386]
[1744255185834,2.6009,1608.6,1608.5,1.24386]
[1744255186234,2.6009,1608.6,1608.5,1.81056]
[1744255186535,3.84471,1608.6,1608.5,1.24386]
[1744255186834,2.6009,1608.6,1608.5,1.24386]
[1744255187336,3.84468,1608.6,1608.5,1.24386]
[1744255187538,2.6009,1608.6,1608.5,1.24386]
[1744255188037,3.84468,1608.6,1608.5,1.24386]
[1744255188231,10.8087,1608.6,1608.3,1.24402]
[1744255188546,1.24399,1608.4,1608.3,1.24402]
[1744255188834,1.24394,1608.4,1608.3,1.24402]
[1744255189037,1.24394,1608.4,1608.3,1.24397]
[1744255189340,5.8087,1608.6,1608.1,4.93723205]
[1744255189539,1.24395,1608.4,1608.3,1.24398]
[1744255189726,5.8087,1608.6,1608.5,1.24386]
[1744255190037,5.8087,1608.6,1608.4,1.24387]
[1744255190241,1.24386,1608.5,1608.2,0.5662]
[1744255190538,3.2078,1608.3,1608.0,6.56]
[1744255190725,3.81422,1608.2,1608.1,1.24417]
[1744255190925,2.5701,1608.2,1608.1,42.04417]
[1744255192140,2.5701,1608.2,1608.1,1.24417]
[1744255192436,5.7779,1608.2,1607.7,9.7895]
[1744255192638,5.7779,1608.2,1607.8,1.24435]
[1744255192639,1.2442,1608.1,1607.8,1.24435]
[1744255192835,2.5239,1608.0,1607.7,9.1671]
[1744255193038,2.5239,1608.0,1607.9,1.24433]
[1744255193342,2.53321561,1608.0,1607.8,3.2078]
[1744255193536,2.53321561,1608.0,1607.9,1.24433]
[1744255193735,2.53321561,1608.0,1607.9,42.04433]
[1744255194034,2.53321561,1608.0,1607.9,40.8]
[1744255194237,2.53321561,1608.0,1607.9,42.04433]
[1744255195032,0.00931561,1608.0,1607.9,1.24433]
[1744255196031,0.00931561,1608.0,1607.9,42.04433]
[1744255196939,2.58481561,1608.0,1607.9,42.04433]
[1744255197841,0.00931561,1608.0,1607.9,42.04433]
[1744255198142,0.00931561,1608.0,1607.9,1.24433]
[1744255198537,0.00931561,1608.0,1607.9,6.89903]
[1744255199136,0.00931561,1608.0,1607.9,47.69903]
[1744255200344,5.61e-06,1608.0,1607.9,47.69903]
[1744255201038,8.2538,1609.0,1607.9,53.17590133]
[1744255201238,3.2078,1609.2,1608.7,3.2078]
[1744255201541,1.24354,1609.0,1608.8,1.24361]
[1744255201745,3.2078,1609.1,1608.8,1.24362]
[1744255201935,3.2078,1609.1,1608.7,6.561]
[1744255202134,1.24361,1608.9,1608.8,0.00931561]
[1744255202335,5.8302,1609.0,1608.8,0.00931561]
[1744255202646,7.07369,1609.0,1608.8,0.00931561]
[1744255202845,5.8302,1609.0,1608.9,1.24355]
[1744255203234,5.8302,1609.0,1608.8,6.57031561]
[1744255203550,5.8302,1609.0,1608.9,1.24355]
[1744255203836,7.07368,1609.0,1608.9,40.8]
[1744255204034,1.24355,1608.9,1608.3,5.54863]
[1744255204240,3.8661,1608.8,1608.4,3.10986]
[1744255204442,2.6224,1608.8,1608.2,104.48222]
[1744255204636,1.2438,1608.6,1608.5,40.8]
[1744255205234,2.6332,1608.6,1608.5,42.04386]
[1744255205435,2.6332,1608.6,1608.5,40.8]
[1744255205635,3.87698,1608.6,1608.5,40.8]
[1744255205838,1.24409,1608.2,1608.0,6.561]
[1744255206043,2.6332,1608.1,1608.0,7.8052]
[1744255206546,2.6332,1608.1,1608.0,48.6052]
[1744255206738,3.88657561,1608.3,1608.1,1.24414]
[1744255206944,2.64251561,1608.3,1608.1,1.24414]
[1744255207142,1.24417,1608.1,1608.0,44.26713205]
[1744255207444,10.89981561,1608.3,1608.1,1.24415]
[1744255207644,1.24413,1608.2,1608.0,42.04419]
[1744255207851,2.6131,1608.1,1608.0,42.04419]
[1744255208039,3.85727,1608.1,1608.0,42.04419]
[1744255208347,3.85727,1608.1,1608.0,40.8]
[1744255208640,12.06507,1608.1,1608.0,40.8]
[1744255209041,1.2444,1607.8,1607.7,14.30403634]
[1744255209440,6.2444,1607.8,1607.7,55.10403634]
[1744255209637,11.3379,1607.8,1607.7,55.10403634]
[1744255210039,11.3379,1607.8,1607.7,7.56230635]
[1744255210242,2.6131,1607.8,1607.7,1.7022184]
[1744255210441,2.6131,1607.8,1607.7,42.04448]
[1744255210854,3.2078,1608.2,1607.8,1.2444]
[1744255211148,3.2078,1608.2,1607.6,0.10996607]
[1744255211345,4.45228,1607.7,1607.6,0.10996607]
[1744255211739,9.45228,1607.7,1607.6,0.10996607]
[1744255211936,4.45228,1607.7,1607.6,0.10996607]
[1744255212147,9.45228,1607.7,1607.6,0.10996607]
[1744255212450,12.02838,1607.7,1607.6,0.10996607]
[1744255213341,16.38273,1607.7,1607.2,0.02229]
[1744255213542,1.24479,1607.3,1607.2,0.02229]
[1744255214051,8.86449,1607.3,1607.2,0.02229]
[1744255214251,8.86449,1607.3,1607.2,42.06716]
[1744255214252,5.2258,1607.3,1607.2,42.06716]
[1744255214451,3.86449,1607.3,1607.2,40.82229]
[1744255214749,3.86449,1607.3,1607.2,0.02229]
[1744255215144,1.24502,1607.0,1606.9,0.4577384]
[1744255215351,5.8139,1607.2,1606.9,0.4577384]
[1744255215545,2.6197,1607.1,1606.9,0.4577384]